[Event "7th Capablanca Memorial GM 2019"]
[Site "Anogia"]
[Date "2019.09.13"]
[Round "3.2"]
[White "Ioannidis, Evgenios"]
[Black "Audi Ameya"]
[Result "0-1"]
[ECO "E91"]
[WhiteElo "2390"]
[BlackElo "2329"]
[Annotator "NA"]
[PlyCount "76"]
[EventDate "2019.09.11"]
[EventType "tourn"]
[EventCountry "GRE"]
[SourceTitle "playchess.com"]
[Source "ChessBase"]
[SourceQuality "1"]
[TimeControl "40/5400+30:1800+30"]

1. Nf3 {[%emt 0:00:00]} Nf6 {[%emt 0:00:00]} 2. c4 {[%emt 0:00:00]} g6 {[%emt 0:02:00]} 3. Nc3 {[%emt 0:01:26]} Bg7 {[%emt 0:00:20]} 4. d4 {[%emt 0:00:44]} O-O {[%emt 0:00:31]} 5. e4 {[%emt 0:00:58]} d6 {[%emt 0:00:02]} 6. Be2 {[%emt 0:00:41]} Bg4 {[%emt 0:02:10]} 7. Be3 {[%emt 0:01:27]} Nfd7 {[%emt 0:00:04]} 8. h3 {[%emt 0:03:40]} Bxf3 {[%emt 0:00:06]} 9. Bxf3 {[%emt 0:00:51]} Nc6 {[%emt 0:00:26]} 10. d5 {[%emt 0:05:18]} Na5 {[%emt 0:01:05]} 11. Be2 {[%emt 0:00:28]} Bxc3+ {[%emt 0:00:11]} 12. bxc3 {[%emt 0:00:08]} e5 {[%emt 0:00:03]} 13. O-O {[%emt 0:03:11]} Qe7 {[%emt 0:00:34]} 14. Qa4 {[%emt 0:06:42]} b6 {[%emt 0:00:07]} 15. Qc2 {[%emt 0:07:01]} Rac8 {[%emt 0:03:10]} 16. Rae1 {[%emt 0:20:22]} c6 {[%emt 0:00:56]} 17. Bh6 {[%emt 0:00:53]} Rfe8 {[%emt 0:01:55]} 18. g3 {[%emt 0:02:47]} Rc7 {[%emt 0:03:11]} 19. f4 {[%emt 0:03:31]} exf4 {[%emt 0:01:22]} 20. gxf4 {[%emt 0:02:27]} Qh4 {[%emt 0:00:49]} 21. Bg5 {[%emt 0:00:05]} Qg3+ {[%emt 0:00:04]} 22. Kh1 {[%emt 0:00:02]} Qxh3+ {[%emt 0:00:05]} 23. Kg1 {[%emt 0:00:02]} Qg3+ {[%emt 0:00:52]} 24. Kh1 {[%emt 0:00:03]} f6 {[%emt 0:00:27]} 25. Rf3 {[%emt 0:03:57]} Qxe1+ {[%emt 0:00:13]} 26. Rf1 {[%emt 0:00:02]} Qg3 {[%emt 0:04:10]} 27. Rf3 {[%emt 0:00:04]} Qxf3+ {[%emt 0:00:23]} 28. Bxf3 {[%emt 0:00:04]} fxg5 {[%emt 0:00:04]} 29. e5 {[%emt 0:01:02]} dxe5 {[%emt 0:02:27]} 30. d6 {[%emt 0:00:13]} Rcc8 {[%emt 0:04:08]} 31. f5 {[%emt 0:02:46]} Rf8 {[%emt 0:05:01]} 32. Be4 {[%emt 0:00:04]} Rf6 {[%emt 0:12:11]} 33. fxg6 {[%emt 0:01:00]} Rcf8 {[%emt 0:08:47]} 34. gxh7+ {[%emt 0:00:06]} Kh8 {[%emt 0:00:07]} 35. Bd3 {[%emt 0:00:48]} Rxd6 {[%emt 0:00:46]} 36. Qe2 {[%emt 0:00:07]} Nb7 {[%emt 0:05:03]} 37. Qe3 {[%emt 0:00:52]} Nbc5 {[%emt 0:00:31]} 38. Bc2 {[%emt 0:00:05]} Rdf6 {[%emt 0:05:56]} 0-1

[Event "7th Capablanca Memorial GM 2019"]
[Site "Anogia"]
[Date "2019.09.13"]
[Round "3.3"]
[White "Anagnostopoulos, Konstantinos"]
[Black "Mirzoev, Emil"]
[Result "1/2-1/2"]
[ECO "B33"]
[WhiteElo "2322"]
[BlackElo "2477"]
[Annotator "ChessBase"]
[PlyCount "48"]
[EventDate "2019.09.11"]
[EventType "tourn"]
[EventCountry "GRE"]
[SourceTitle "playchess.com"]
[Source "ChessBase"]
[SourceQuality "1"]
[TimeControl "40/5400+30:1800+30"]

1. e4 {[%emt 0:05:11]} c5 {[%emt 0:00:31]} 2. Nf3 {[%emt 0:00:05]} Nc6 {[%emt 0:00:37]} 3. d4 {[%emt 0:00:33]} cxd4 {[%emt 0:00:09]} 4. Nxd4 {[%emt 0:00:03]} Qb6 {[%emt 0:02:09]} 5. Nb3 {[%emt 0:02:24]} Nf6 {[%emt 0:00:47]} 6. Nc3 {[%emt 0:02:41]} e6 {[%emt 0:00:04]} 7. Be3 {[%emt 0:02:01]} Qc7 {[%emt 0:00:06]} 8. Qf3 {[%emt 0:08:05]} a6 {[%emt 0:03:48]} 9. Qg3 {[%emt 0:03:24]} Qxg3 {[%emt 0:02:31]} 10. hxg3 {[%emt 0:00:10]} Bb4 {[%emt 0:09:57]} 11. Bd2 {[%emt 0:06:57]} Be7 {[%emt 0:04:38]} 12. f3 {[%emt 0:07:09]} b5 {[%emt 0:00:16]} 13. g4 {[%emt 0:00:12]} d6 {[%emt 0:01:11]} 14. Ne2 {[%emt 0:11:04]} Bb7 {[%emt 0:04:48]} 15. a4 {[%emt 0:01:55]} b4 {[%emt 0:00:15]} 16. a5 {[%emt 0:00:21]} O-O {[%emt 0:04:22]} 17. Ned4 {[%emt 0:02:28]} Nxd4 {[%emt 0:02:10]} 18. Nxd4 {[%emt 0:00:05]} d5 {[%emt 0:00:08]} 19. e5 {[%emt 0:06:11]} Nd7 {[%emt 0:01:25]} 20. f4 {[%emt 0:01:03]} Rfc8 {[%emt 0:01:32]} 21. Ra4 {[%emt 0:16:56]} Bc5 {[%emt 0:00:57]} 22. Nb3 {[%emt 0:00:48]} Be7 {[%emt 0:03:09]} 23. Nd4 {[%emt 0:00:04]} Bc5 {[%emt 0:00:06]} 24. Nb3 {[%emt 0:00:04]} Be7 {[%emt 0:00:12]} 1/2-1/2

[Event "7th Capablanca Memorial GM 2019"]
[Site "Anogia"]
[Date "2019.09.13"]
[Round "3.4"]
[White "Manish Anto Cristiano F"]
[Black "Osmak, Iulija"]
[Result "0-1"]
[ECO "A89"]
[WhiteElo "2364"]
[BlackElo "2408"]
[Annotator "NA"]
[PlyCount "81"]
[EventDate "2019.09.11"]
[EventType "tourn"]
[EventCountry "GRE"]
[SourceTitle "playchess.com"]
[Source "ChessBase"]
[SourceQuality "1"]
[TimeControl "40/5400+30:1800+30"]

1. d4 {[%emt 0:00:00]} f5 {[%emt 0:04:35]} 2. c4 {[%emt 0:00:02]} Nf6 {[%emt 0:00:10]} 3. Nc3 {[%emt 0:00:31]} g6 {[%emt 0:00:07]} 4. Nf3 {[%emt 0:02:12]} Bg7 {[%emt 0:00:09]} 5. g3 {[%emt 0:00:24]} d6 {[%emt 0:00:19]} 6. Bg2 {[%emt 0:00:36]} O-O {[%emt 0:00:10]} 7. O-O {[%emt 0:00:22]} Nc6 {[%emt 0:00:25]} 8. d5 {[%emt 0:03:30]} Ne5 {[%emt 0:00:07]} 9. Nxe5 {[%emt 0:03:35]} dxe5 {[%emt 0:00:04]} 10. e4 {[%emt 0:00:47]} f4 {[%emt 0:00:19]} 11. Qe2 {[%emt 0:17:17]} g5 {[%emt 0:00:48]} 12. gxf4 {[%emt 0:12:41]} gxf4 {[%emt 0:05:16]} 13. Bd2 {[%emt 0:04:28]} Bg4 {[%emt 0:09:50]} 14. f3 {[%emt 0:02:48]} Bd7 {[%emt 0:01:22]} 15. Kf2 {[%emt 0:02:04]} e6 {[%emt 0:03:51]} 16. Bh3 {[%emt 0:01:19]} Qe7 {[%emt 0:12:10]} 17. Rg1 {[%emt 0:05:51]} Rad8 {[%emt 0:04:38]} 18. Rad1 {[%emt 0:08:27]} Kh8 {[%emt 0:11:25]} 19. Kg2 {[%emt 0:03:04]} Ne8 {[%emt 0:09:30]} 20. Be1 {[%emt 0:01:57]} Bf6 {[%emt 0:01:28]} 21. Kh1 {[%emt 0:00:27]} Ng7 {[%emt 0:01:40]} 22. Bf2 {[%emt 0:01:55]} b6 {[%emt 0:02:32]} 23. c5 {[%emt 0:04:40]} exd5 {[%emt 0:09:03]} 24. Nxd5 {[%emt 0:01:01]} Qf7 {[%emt 0:00:05]} 25. Bxd7 {[%emt 0:03:21]} Rxd7 {[%emt 0:00:04]} 26. Qa6 {[%emt 0:02:35]} Bd8 {[%emt 0:02:59]} 27. b4 {[%emt 0:02:13]} Ne6 {[%emt 0:03:01]} 28. b5 {[%emt 0:01:29]} bxc5 {[%emt 0:07:30]} 29. Qa3 {[%emt 0:02:49]} Nd4 {[%emt 0:03:33]} 30. Rc1 {[%emt 0:00:23]} Ne2 {[%emt 0:02:04]} 31. Bxc5 {[%emt 0:00:58]} Re8 {[%emt 0:00:07]} 32. Qb2 {[%emt 0:00:15]} Nxc1 {[%emt 0:01:11]} 33. Rxc1 {[%emt 0:00:09]} Qh5 {[%emt 0:00:30]} 34. Qe2 {[%emt 0:01:20]} Rg8 {[%emt 0:01:39]} 35. Bxa7 {[%emt 0:01:53]} c6 {[%emt 0:01:00]} 36. bxc6 {[%emt 0:01:53]} Rxa7 {[%emt 0:00:06]} 37. c7 {[%emt 0:00:19]} Bxc7 {[%emt 0:00:49]} 38. Rxc7 {[%emt 0:01:44]} Rxa2 {[%emt 0:01:04]} 39. Rxh7+ {[%emt 0:00:28]} Kxh7 {[%emt 0:00:26]} 40. Nf6+ {[%emt 0:00:00]} Kh8 {[%emt 0:00:00]} 41. Qd1 {[%emt 0:00:26]} 0-1

[Event "7th Capablanca Memorial GM 2019"]
[Site "Anogia"]
[Date "2019.09.13"]
[Round "3.5"]
[White "Dushyant Sharma"]
[Black "David, Alberto"]
[Result "0-1"]
[ECO "B28"]
[WhiteElo "2242"]
[BlackElo "2533"]
[Annotator "ChessBase"]
[PlyCount "76"]
[EventDate "2019.09.11"]
[EventType "tourn"]
[EventCountry "GRE"]
[SourceTitle "playchess.com"]
[Source "ChessBase"]
[SourceQuality "1"]
[TimeControl "40/5400+30:1800+30"]

1. e4 {[%emt 0:00:00]} c5 {[%emt 0:00:51]} 2. Nf3 {[%emt 0:00:00]} a6 {[%emt 0:00:05]} 3. c4 {[%emt 0:00:00]} Nc6 {[%emt 0:01:24]} 4. d4 {[%emt 0:01:51]} cxd4 {[%emt 0:00:08]} 5. Nxd4 {[%emt 0:00:46]} e5 {[%emt 0:00:22]} 6. Nc2 {[%emt 0:11:09]} Bc5 {[%emt 0:00:55]} 7. Be3 {[%emt 0:02:25]} Bxe3 {[%emt 0:07:07]} 8. Nxe3 {[%emt 0:00:15]} d6 {[%emt 0:00:21]} 9. Nc3 {[%emt 0:02:02]} Nge7 {[%emt 0:01:27]} 10. Bd3 {[%emt 0:05:09]} O-O {[%emt 0:03:30]} 11. O-O {[%emt 0:00:53]} Nd4 {[%emt 0:06:13]} 12. f4 {[%emt 0:09:27]} exf4 {[%emt 0:25:06]} 13. Rxf4 {[%emt 0:01:00]} Be6 {[%emt 0:01:08]} 14. Nf5 {[%emt 0:12:02]} Ng6 {[%emt 0:05:04]} 15. Rf2 {[%emt 0:01:39]} Nc6 {[%emt 0:03:08]} 16. Be2 {[%emt 0:12:22]} Qb6 {[%emt 0:09:53]} 17. b3 {[%emt 0:03:04]} Rad8 {[%emt 0:02:17]} 18. Nd5 {[%emt 0:03:15]} Bxd5 {[%emt 0:07:34]} 19. exd5 {[%emt 0:00:27]} Nce5 {[%emt 0:00:06]} 20. Qd2 {[%emt 0:00:49]} Rd7 {[%emt 0:01:49]} 21. Raf1 {[%emt 0:01:53]} a5 {[%emt 0:08:03]} 22. Kh1 {[%emt 0:01:47]} Qd8 {[%emt 0:02:26]} 23. Qd4 {[%emt 0:01:27]} Re8 {[%emt 0:00:35]} 24. h4 {[%emt 0:01:16]} Ne7 {[%emt 0:05:12]} 25. Ng3 {[%emt 0:13:14]} Nc8 {[%emt 0:04:08]} 26. Bd1 {[%emt 0:01:24]} Qb6 {[%emt 0:01:02]} 27. Qc3 {[%emt 0:02:35]} Qd8 {[%emt 0:01:37]} 28. Nf5 {[%emt 0:00:47]} Ne7 {[%emt 0:00:08]} 29. Nxg7 {[%emt 0:08:47]} Kxg7 {[%emt 0:00:04]} 30. Rxf7+ {[%emt 0:00:55]} Kh8 {[%emt 0:02:53]} 31. Bg4 {[%emt 0:01:41]} Nxd5 {[%emt 0:00:06]} 32. cxd5 {[%emt 0:00:41]} Qxh4+ {[%emt 0:00:05]} 33. Bh3 {[%emt 0:00:15]} Rxf7 {[%emt 0:00:20]} 34. Rxf7 {[%emt 0:00:07]} Kg8 {[%emt 0:00:37]} 35. Rxb7 {[%emt 0:00:50]} Rf8 {[%emt 0:00:10]} 36. Qc1 {[%emt 0:00:54]} Ng4 {[%emt 0:01:12]} 37. Kg1 {[%emt 0:00:47]} Qf2+ {[%emt 0:00:07]} 38. Kh1 {[%emt 0:00:07]} Qf1+ {[%emt 0:00:06]} 0-1

[Event "7th Capablanca Memorial GM 2019"]
[Site "Anogia"]
[Date "2019.09.14"]
[Round "4.1"]
[White "Moiseenko, Vadim"]
[Black "David, Alberto"]
[Result "1/2-1/2"]
[ECO "B12"]
[WhiteElo "2543"]
[BlackElo "2533"]
[Annotator "ChessBase"]
[PlyCount "24"]
[EventDate "2019.09.11"]
[EventType "tourn"]
[EventCountry "GRE"]
[SourceTitle "playchess.com"]
[Source "ChessBase"]
[SourceQuality "1"]
[TimeControl "40/5400+30:1800+30"]

1. e4 {[%emt 0:09:01]} c6 {[%emt 0:00:00]} 2. d4 {[%emt 0:00:15]} d5 {[%emt 0:00:01]} 3. e5 {[%emt 0:00:14]} Bf5 {[%emt 0:00:24]} 4. h4 {[%emt 0:00:29]} Qb6 {[%emt 0:03:07]} 5. Nc3 {[%emt 0:00:32]} h5 {[%emt 0:13:31]} 6. Na4 {[%emt 0:26:52]} Qc7 {[%emt 0:05:15]} 7. b3 {[%emt 0:03:39]} e6 {[%emt 0:04:22]} 8. Bd3 {[%emt 0:00:07]} Bxd3 {[%emt 0:00:48]} 9. Qxd3 {[%emt 0:00:11]} c5 {[%emt 0:12:19]} 10. c3 {[%emt 0:06:29]} cxd4 {[%emt 0:04:39]} 11. cxd4 {[%emt 0:00:05]} Nc6 {[%emt 0:00:04]} 12. a3 {[%emt 0:02:13]} Nge7 {[%emt 0:06:01]} 1/2-1/2

[Event "7th Capablanca Memorial GM 2019"]
[Site "Anogia"]
[Date "2019.09.14"]
[Round "4.2"]
[White "Osmak, Iulija"]
[Black "Dushyant Sharma"]
[Result "1-0"]
[ECO "E33"]
[WhiteElo "2408"]
[BlackElo "2242"]
[Annotator "NA"]
[PlyCount "105"]
[EventDate "2019.09.11"]
[EventType "tourn"]
[EventCountry "GRE"]
[SourceTitle "playchess.com"]
[Source "ChessBase"]
[SourceQuality "1"]
[TimeControl "40/5400+30:1800+30"]

1. d4 {[%emt 0:08:09]} Nf6 {[%emt 0:00:00]} 2. c4 {[%emt 0:00:08]} e6 {[%emt 0:00:00]} 3. Nc3 {[%emt 0:00:07]} Bb4 {[%emt 0:00:00]} 4. Qc2 {[%emt 0:00:03]} Nc6 {[%emt 0:01:45]} 5. Nf3 {[%emt 0:00:09]} d6 {[%emt 0:00:34]} 6. a3 {[%emt 0:00:12]} Bxc3+ {[%emt 0:00:28]} 7. Qxc3 {[%emt 0:00:04]} Qe7 {[%emt 0:07:29]} 8. b4 {[%emt 0:00:52]} O-O {[%emt 0:03:38]} 9. Bb2 {[%emt 0:01:41]} b6 {[%emt 0:06:46]} 10. g3 {[%emt 0:05:27]} Bb7 {[%emt 0:08:10]} 11. Bg2 {[%emt 0:02:18]} d5 {[%emt 0:11:45]} 12. O-O {[%emt 0:01:09]} Rfd8 {[%emt 0:09:01]} 13. Rac1 {[%emt 0:02:23]} Rac8 {[%emt 0:01:12]} 14. Rfd1 {[%emt 0:01:19]} a5 {[%emt 0:07:49]} 15. b5 {[%emt 0:17:03]} Nb8 {[%emt 0:02:10]} 16. c5 {[%emt 0:01:57]} Ne4 {[%emt 0:06:33]} 17. Qe1 {[%emt 0:10:51]} bxc5 {[%emt 0:01:30]} 18. dxc5 {[%emt 0:00:14]} c6 {[%emt 0:01:06]} 19. b6 {[%emt 0:03:14]} a4 {[%emt 0:03:06]} 20. Rc2 {[%emt 0:16:12]} f6 {[%emt 0:01:54]} 21. Rdc1 {[%emt 0:01:07]} Na6 {[%emt 0:01:16]} 22. Nd4 {[%emt 0:07:17]} Re8 {[%emt 0:02:08]} 23. Qa5 {[%emt 0:05:19]} Ra8 {[%emt 0:06:19]} 24. Bxe4 {[%emt 0:00:31]} dxe4 {[%emt 0:01:03]} 25. Qxa4 {[%emt 0:00:35]} Nxc5 {[%emt 0:01:17]} 26. Qb4 {[%emt 0:00:52]} Na4 {[%emt 0:06:09]} 27. Qxe7 {[%emt 0:01:38]} Rxe7 {[%emt 0:00:02]} 28. Nxc6 {[%emt 0:00:15]} Bxc6 {[%emt 0:00:22]} 29. Rxc6 {[%emt 0:00:06]} e5 {[%emt 0:00:31]} 30. Rb1 {[%emt 0:04:42]} Rb7 {[%emt 0:06:52]} 31. Bc1 {[%emt 0:00:16]} Ra6 {[%emt 0:00:26]} 32. Be3 {[%emt 0:00:39]} Kf7 {[%emt 0:00:13]} 33. Rb4 {[%emt 0:00:52]} Ke7 {[%emt 0:01:29]} 34. Rcc4 {[%emt 0:00:42]} Nxb6 {[%emt 0:00:16]} 35. Rc6 {[%emt 0:00:08]} Rxa3 {[%emt 0:00:43]} 36. Rcxb6 {[%emt 0:00:31]} Rxb6 {[%emt 0:00:12]} 37. Bxb6 {[%emt 0:00:12]} Ra1+ {[%emt 0:01:22]} 38. Kg2 {[%emt 0:00:04]} f5 {[%emt 0:00:15]} 39. Bc7 {[%emt 0:00:58]} Ra2 {[%emt 0:00:14]} 40. e3 {[%emt 0:00:00]} Ke6 {[%emt 0:00:00]} 41. Rb5 {[%emt 0:01:00]} Rc2 {[%emt 0:01:45]} 42. Bxe5 {[%emt 0:00:11]} g6 {[%emt 0:00:19]} 43. Bd4 {[%emt 0:00:14]} Rc7 {[%emt 0:00:12]} 44. Rb6+ {[%emt 0:00:18]} Kd5 {[%emt 0:00:09]} 45. Ra6 {[%emt 0:00:13]} Kc4 {[%emt 0:00:08]} 46. Ra7 {[%emt 0:00:11]} Rc6 {[%emt 0:00:08]} 47. Rxh7 {[%emt 0:00:06]} Kd3 {[%emt 0:00:15]} 48. Rb7 {[%emt 0:00:10]} g5 {[%emt 0:00:17]} 49. Rb3+ {[%emt 0:00:57]} Ke2 {[%emt 0:00:07]} 50. Rb5 {[%emt 0:00:23]} f4 {[%emt 0:00:11]} 51. exf4 {[%emt 0:00:09]} gxf4 {[%emt 0:00:10]} 52. gxf4 {[%emt 0:00:07]} Rg6+ {[%emt 0:00:40]} 53. Rg5 {[%emt 0:00:08]} 1-0

[Event "7th Capablanca Memorial GM 2019"]
[Site "Anogia"]
[Date "2019.09.14"]
[Round "4.3"]
[White "Mirzoev, Emil"]
[Black "Manish Anto Cristiano F"]
[Result "1/2-1/2"]
[ECO "A05"]
[WhiteElo "2477"]
[BlackElo "2364"]
[Annotator "ChessBase"]
[PlyCount "59"]
[EventDate "2019.09.11"]
[EventType "tourn"]
[EventCountry "GRE"]
[SourceTitle "playchess.com"]
[Source "ChessBase"]
[SourceQuality "1"]
[TimeControl "40/5400+30:1800+30"]

1. Nf3 {[%emt 0:03:42]} Nf6 {[%emt 0:00:00]} 2. g3 {[%emt 0:01:06]} b5 {[%emt 0:00:17]} 3. Bg2 {[%emt 0:04:57]} Bb7 {[%emt 0:00:14]} 4. O-O {[%emt 0:00:06]} e6 {[%emt 0:00:38]} 5. d3 {[%emt 0:00:18]} Be7 {[%emt 0:00:24]} 6. e4 {[%emt 0:00:17]} d6 {[%emt 0:00:30]} 7. Nbd2 {[%emt 0:04:20]} O-O {[%emt 0:00:57]} 8. a4 {[%emt 0:02:21]} a6 {[%emt 0:03:15]} 9. Re1 {[%emt 0:01:10]} c5 {[%emt 0:02:55]} 10. e5 {[%emt 0:02:07]} dxe5 {[%emt 0:05:20]} 11. Nxe5 {[%emt 0:03:21]} Bxg2 {[%emt 0:00:42]} 12. Kxg2 {[%emt 0:00:49]} Qd5+ {[%emt 0:00:54]} 13. Qf3 {[%emt 0:01:45]} Qxf3+ {[%emt 0:02:44]} 14. Ndxf3 {[%emt 0:01:02]} Nbd7 {[%emt 0:01:50]} 15. c4 {[%emt 0:03:50]} Nxe5 {[%emt 0:06:29]} 16. Nxe5 {[%emt 0:01:50]} bxc4 {[%emt 0:04:11]} 17. dxc4 {[%emt 0:00:39]} Rfc8 {[%emt 0:01:11]} 18. Bd2 {[%emt 0:04:08]} Rab8 {[%emt 0:06:53]} 19. Bc3 {[%emt 0:00:12]} Rb7 {[%emt 0:00:25]} 20. Rad1 {[%emt 0:00:48]} Kf8 {[%emt 0:09:04]} 21. f4 {[%emt 0:02:59]} Ke8 {[%emt 0:04:08]} 22. g4 {[%emt 0:00:41]} Ng8 {[%emt 0:02:36]} 23. g5 {[%emt 0:01:26]} f6 {[%emt 0:02:13]} 24. gxf6 {[%emt 0:02:16]} gxf6 {[%emt 0:00:15]} 25. Ng4 {[%emt 0:05:01]} Kf7 {[%emt 0:01:11]} 26. f5 {[%emt 0:00:39]} exf5 {[%emt 0:13:49]} 27. Ne3 {[%emt 0:00:06]} Nh6 {[%emt 0:00:15]} 28. Kf3 {[%emt 0:00:34]} Rd8 {[%emt 0:03:07]} 29. Nd5 {[%emt 0:01:06]} Ng4 {[%emt 0:02:13]} 30. h3 {[%emt 0:12:36]} 1/2-1/2

[Event "7th Capablanca Memorial GM 2019"]
[Site "Anogia"]
[Date "2019.09.14"]
[Round "4.4"]
[White "Audi Ameya"]
[Black "Anagnostopoulos, Konstantinos"]
[Result "1/2-1/2"]
[ECO "D35"]
[WhiteElo "2329"]
[BlackElo "2322"]
[Annotator "NA"]
[PlyCount "99"]
[EventDate "2019.09.11"]
[EventType "tourn"]
[EventCountry "GRE"]
[SourceTitle "playchess.com"]
[Source "ChessBase"]
[SourceQuality "1"]
[TimeControl "40/5400+30:1800+30"]

1. c4 {[%emt 0:00:00]} e6 {[%emt 0:00:23]} 2. Nc3 {[%emt 0:00:00]} d5 {[%emt 0:00:05]} 3. d4 {[%emt 0:00:00]} Be7 {[%emt 0:00:05]} 4. Nf3 {[%emt 0:01:19]} Nf6 {[%emt 0:00:04]} 5. Bg5 {[%emt 0:05:26]} O-O {[%emt 0:00:45]} 6. e3 {[%emt 0:00:26]} Nbd7 {[%emt 0:00:39]} 7. cxd5 {[%emt 0:04:41]} exd5 {[%emt 0:01:04]} 8. Bd3 {[%emt 0:00:27]} c5 {[%emt 0:05:38]} 9. O-O {[%emt 0:05:13]} a6 {[%emt 0:07:28]} 10. a4 {[%emt 0:20:08]} c4 {[%emt 0:09:21]} 11. Bc2 {[%emt 0:01:08]} Qc7 {[%emt 0:06:48]} 12. e4 {[%emt 0:06:03]} dxe4 {[%emt 0:01:31]} 13. Nxe4 {[%emt 0:00:04]} Nd5 {[%emt 0:25:49]} 14. Bxe7 {[%emt 0:09:54]} Nxe7 {[%emt 0:00:04]} 15. Re1 {[%emt 0:00:04]} Nd5 {[%emt 0:03:34]} 16. Ra3 {[%emt 0:17:11]} a5 {[%emt 0:03:36]} 17. Ne5 {[%emt 0:03:17]} Nxe5 {[%emt 0:10:36]} 18. dxe5 {[%emt 0:00:07]} Qxe5 {[%emt 0:01:11]} 19. Rg3 {[%emt 0:07:21]} Nf6 {[%emt 0:02:31]} 20. Rg5 {[%emt 0:01:10]} Qe7 {[%emt 0:05:05]} 21. Nd6 {[%emt 0:07:25]} Qd8 {[%emt 0:00:21]} 22. Nxc4 {[%emt 0:00:51]} Qxd1 {[%emt 0:02:09]} 23. Bxd1 {[%emt 0:00:02]} Be6 {[%emt 0:01:41]} 24. Nxa5 {[%emt 0:00:49]} Bd5 {[%emt 0:02:31]} 25. Nb3 {[%emt 0:02:32]} Rxa4 {[%emt 0:00:13]} 26. Nc5 {[%emt 0:00:02]} Rd4 {[%emt 0:01:24]} 27. Rg3 {[%emt 0:04:45]} Rd2 {[%emt 0:01:33]} 28. b3 {[%emt 0:01:03]} b6 {[%emt 0:01:12]} 29. Rd3 {[%emt 0:00:28]} Rxd3 {[%emt 0:01:33]} 30. Nxd3 {[%emt 0:00:24]} Rc8 {[%emt 0:01:13]} 31. Nf4 {[%emt 0:00:29]} Bc6 {[%emt 0:02:41]} 32. h4 {[%emt 0:00:10]} Kf8 {[%emt 0:00:19]} 33. Be2 {[%emt 0:02:11]} Nd5 {[%emt 0:00:46]} 34. Bg4 {[%emt 0:01:04]} Rc7 {[%emt 0:01:44]} 35. Nd3 {[%emt 0:00:14]} Bd7 {[%emt 0:01:00]} 36. Bf3 {[%emt 0:00:14]} Be6 {[%emt 0:00:21]} 37. Ne5 {[%emt 0:00:29]} Nb4 {[%emt 0:00:41]} 38. Re4 {[%emt 0:00:42]} Nc6 {[%emt 0:00:44]} 39. Nc4 {[%emt 0:00:45]} Na5 {[%emt 0:00:31]} 40. Nxb6 {[%emt 0:00:00]} Nxb3 {[%emt 0:00:00]} 41. Ra4 {[%emt 0:06:36]} g6 {[%emt 0:07:20]} 42. Kh2 {[%emt 0:03:19]} Nd2 {[%emt 0:02:13]} 43. Be2 {[%emt 0:01:29]} Rc2 {[%emt 0:06:29]} 44. Rf4 {[%emt 0:00:02]} Kg7 {[%emt 0:01:26]} 45. Bd3 {[%emt 0:02:28]} Rc3 {[%emt 0:00:56]} 46. Be2 {[%emt 0:00:02]} Rc2 {[%emt 0:00:05]} 47. Na4 {[%emt 0:00:09]} Bc4 {[%emt 0:02:07]} 48. Bxc4 {[%emt 0:02:16]} Rxc4 {[%emt 0:00:10]} 49. Rxc4 {[%emt 0:00:02]} Nxc4 {[%emt 0:00:04]} 50. Kg3 {[%emt 0:00:38]} 1/2-1/2

[Event "7th Capablanca Memorial GM 2019"]
[Site "Anogia"]
[Date "2019.09.14"]
[Round "4.5"]
[White "Patrelakis, Evaggelos"]
[Black "Ioannidis, Evgenios"]
[Result "1/2-1/2"]
[ECO "B98"]
[WhiteElo "2202"]
[BlackElo "2390"]
[Annotator "NA"]
[PlyCount "43"]
[EventDate "2019.09.11"]
[EventType "tourn"]
[EventCountry "GRE"]
[SourceTitle "playchess.com"]
[Source "ChessBase"]
[SourceQuality "1"]
[TimeControl "40/5400+30:1800+30"]

1. e4 {[%emt 0:00:00]} c5 {[%emt 0:00:00]} 2. Nf3 {[%emt 0:00:00]} d6 {[%emt 0:00:10]} 3. d4 {[%emt 0:00:06]} cxd4 {[%emt 0:00:07]} 4. Nxd4 {[%emt 0:00:06]} Nf6 {[%emt 0:00:09]} 5. Nc3 {[%emt 0:00:05]} a6 {[%emt 0:00:20]} 6. Bg5 {[%emt 0:00:21]} e6 {[%emt 0:00:34]} 7. f4 {[%emt 0:00:15]} Be7 {[%emt 0:01:00]} 8. Qf3 {[%emt 0:00:31]} Qc7 {[%emt 0:00:28]} 9. O-O-O {[%emt 0:00:53]} O-O {[%emt 0:01:16]} 10. Bd3 {[%emt 0:03:49]} Nc6 {[%emt 0:01:16]} 11. Nxc6 {[%emt 0:04:05]} bxc6 {[%emt 0:00:09]} 12. Qg3 {[%emt 0:05:32]} e5 {[%emt 0:01:15]} 13. Be2 {[%emt 0:16:42]} Kh8 {[%emt 0:14:55]} 14. f5 {[%emt 0:12:43]} Rb8 {[%emt 0:03:19]} 15. Rd3 {[%emt 0:09:32]} d5 {[%emt 0:15:46]} 16. exd5 {[%emt 0:04:41]} Bxf5 {[%emt 0:09:43]} 17. d6 {[%emt 0:11:16]} Bxd6 {[%emt 0:00:06]} 18. Bxf6 {[%emt 0:00:14]} gxf6 {[%emt 0:00:31]} 19. Qf2 {[%emt 0:02:38]} Bxd3 {[%emt 0:00:11]} 20. Qxf6+ {[%emt 0:01:11]} Kg8 {[%emt 0:00:09]} 21. Bxd3 {[%emt 0:00:12]} e4 {[%emt 0:08:54]} 22. Qg5+ {[%emt 0:04:12]} 1/2-1/2

[Event "7th Capablanca Memorial GM 2019"]
[Site "Anogia"]
[Date "2019.09.15"]
[Round "5.1"]
[White "Ioannidis, Evgenios"]
[Black "Moiseenko, Vadim"]
[Result "0-1"]
[ECO "A37"]
[WhiteElo "2390"]
[BlackElo "2543"]
[Annotator "ChessBase"]
[PlyCount "64"]
[EventDate "2019.09.11"]
[EventType "tourn"]
[EventCountry "GRE"]
[SourceTitle "playchess.com"]
[Source "ChessBase"]
[SourceQuality "1"]
[TimeControl "40/5400+30:1800+30"]

1. Nf3 {[%emt 0:00:00]} c5 {[%emt 0:01:29]} 2. c4 {[%emt 0:00:26]} Nc6 {[%emt 0:00:12]} 3. Nc3 {[%emt 0:03:27]} g6 {[%emt 0:00:06]} 4. g3 {[%emt 0:00:53]} Bg7 {[%emt 0:00:11]} 5. Bg2 {[%emt 0:00:07]} Nh6 {[%emt 0:01:16]} 6. O-O {[%emt 0:08:24]} Nf5 {[%emt 0:00:59]} 7. Rb1 {[%emt 0:01:05]} d6 {[%emt 0:00:22]} 8. a3 {[%emt 0:00:42]} a5 {[%emt 0:01:42]} 9. e3 {[%emt 0:03:49]} O-O {[%emt 0:01:31]} 10. b3 {[%emt 0:02:03]} Bd7 {[%emt 0:06:42]} 11. Bb2 {[%emt 0:02:15]} Rb8 {[%emt 0:00:19]} 12. Nb5 {[%emt 0:03:07]} Ne5 {[%emt 0:03:21]} 13. Ne1 {[%emt 0:03:06]} Bc6 {[%emt 0:17:06]} 14. d4 {[%emt 0:12:05]} Bxb5 {[%emt 0:05:06]} 15. cxb5 {[%emt 0:02:48]} Nd7 {[%emt 0:03:35]} 16. d5 {[%emt 0:06:40]} a4 {[%emt 0:12:53]} 17. b4 {[%emt 0:05:04]} Ra8 {[%emt 0:07:00]} 18. Bh3 {[%emt 0:07:47]} cxb4 {[%emt 0:00:46]} 19. Bxf5 {[%emt 0:01:27]} Bxb2 {[%emt 0:00:06]} 20. Bxd7 {[%emt 0:00:23]} Bxa3 {[%emt 0:00:05]} 21. Bg4 {[%emt 0:02:58]} b3 {[%emt 0:00:04]} 22. Qd4 {[%emt 0:08:43]} Qa5 {[%emt 0:00:37]} 23. Be2 {[%emt 0:02:10]} Bb4 {[%emt 0:00:32]} 24. Nf3 {[%emt 0:00:36]} Bc3 {[%emt 0:02:07]} 25. Qh4 {[%emt 0:00:04]} Bf6 {[%emt 0:08:03]} 26. Ng5 {[%emt 0:01:56]} Bxg5 {[%emt 0:00:04]} 27. Qxg5 {[%emt 0:00:03]} Qb4 {[%emt 0:00:08]} 28. Bd1 {[%emt 0:11:24]} Qe4 {[%emt 0:05:17]} 29. Bxb3 {[%emt 0:01:20]} axb3 {[%emt 0:00:04]} 30. Rxb3 {[%emt 0:00:03]} Rfc8 {[%emt 0:00:18]} 31. Rfb1 {[%emt 0:02:01]} Rc4 {[%emt 0:02:56]} 32. R3b2 {[%emt 0:01:35]} f6 {[%emt 0:07:44]} 0-1